bitfinex/quotes_ETHUSD_20260208
["timestamp","ask_amount","ask_price","bid_price","bid_amount"]
[1770515158422,0.91575694,2095.2,2094.4,0.91561706]
[1770515158918,2.1090174,2095.1,2094.4,0.91561706]
[1770515162049,1.19303268,2095.5,2094.6,0.91561706]
[1770515162419,0.91575694,2095.4,2094.6,0.91561706]
[1770515162621,0.91575694,2095.4,2094.4,4.02657109]
[1770515162835,0.91575694,2095.4,2094.5,0.91561706]
[1770515163740,1.19303268,2095.5,2094.6,0.91561706]
[1770515163924,2.10878962,2095.5,2094.6,0.91561706]
[1770515164432,0.91575694,2095.4,2094.6,0.91561706]
[1770515167149,5.71441227,2095.6,2094.6,0.91561706]
[1770515167450,0.9403008,2095.5,2094.6,0.91561706]
[1770515167638,0.002,2095.2,2094.6,0.91561706]
[1770515168763,0.002,2095.2,2094.7,0.9428577]
[1770515169243,0.002,2095.2,2094.5,0.9428577]
[1770515169433,0.002,2095.2,2094.6,5.05119905]
[1770515169647,0.9423008,2095.2,2094.7,1.91731547]
[1770515170768,0.002,2095.2,2094.7,1.91731547]
[1770515171222,0.002,2095.2,2094.7,2.86017317]
[1770515173333,0.002,2095.2,2094.8,1.91731547]
[1770515173849,0.002,2095.2,2094.9,2.83445606]
[1770515174050,0.002,2095.2,2095.0,1.91731547]
[1770515174447,0.002,2095.2,2095.0,2.83445606]
[1770515174651,0.002,2095.2,2095.0,1.91731547]
[1770515175036,0.002,2095.2,2094.9,0.91714059]
[1770515179642,0.002,2095.4,2095.0,4.10834135]
[1770515179846,0.002,2095.4,2095.0,5.02548194]
[1770515180043,0.002,2095.4,2095.0,6.94279741]
[1770515180264,0.002,2095.2,2095.1,0.91714059]
[1770515180464,0.002,2095.4,2095.1,2.83445606]
[1770515181258,0.002,2095.4,2095.1,1.91731547]
[1770515182043,0.002,2095.4,2095.1,0.91714059]
[1770515182836,0.36950831,2095.7,2095.2,5.02548194]
[1770515183234,1.56244357,2095.7,2095.2,5.02548194]
[1770515183463,0.36950831,2095.7,2095.2,5.02548194]
[1770515183648,1.56242978,2095.7,2095.2,5.02548194]
[1770515184162,0.36950831,2095.7,2095.2,5.02548194]
[1770515184360,1.19263429,2096.3,2095.7,0.91714059]
[1770515184560,2.1234852,2096.3,2095.6,5.02548194]
[1770515185664,2.12343584,2096.3,2095.8,4.10834135]
[1770515185850,1.19249959,2096.5,2095.9,0.91714059]
[1770515186056,1.19244148,2096.6,2096.0,4.10834135]
[1770515186442,5.70033549,2096.7,2096.2,4.10834135]
[1770515186443,2.12322614,2096.7,2096.2,4.10834135]
[1770515186667,2.12322614,2096.7,2096.0,5.02548194]
[1770515187339,0.93085091,2096.9,2096.2,5.02548194]
[1770515187645,0.93085091,2096.9,2096.2,0.91714059]
[1770515188262,4.76878238,2097.0,2096.3,0.91714059]
[1770515189364,2.47539083,2097.1,2096.4,0.91714059]
[1770515189365,1.54451918,2097.1,2096.4,0.91714059]
[1770515189776,0.35236062,2097.1,2096.4,0.91714059]
[1770515190085,1.54449007,2097.1,2096.4,0.91714059]
[1770515190288,1.54450064,2097.1,2096.4,0.91714059]
[1770515190489,2.47535155,2097.1,2096.4,0.91714059]
[1770515190701,0.93085091,2097.0,2096.2,0.91714059]
[1770515190911,0.93085091,2096.8,2095.7,0.91714059]
[1770515191260,0.93085091,2096.6,2095.7,0.91714059]
[1770515191593,0.96913575,2096.6,2095.5,2.11016187]
[1770515192111,0.96913575,2096.6,2094.8,4.77472531]
[1770515192112,0.93085091,2096.2,2094.9,0.91714059]
[1770515192393,0.93085091,2096.2,2095.1,0.91714059]
[1770515192970,0.93085091,2096.2,2095.3,0.001]
[1770515193403,0.93085091,2096.0,2095.3,0.001]
[1770515194190,0.96913575,2096.0,2095.0,0.001]
[1770515194391,0.93085091,2095.8,2095.0,0.001]
[1770515194589,0.93085091,2095.4,2094.8,0.001]
[1770515195594,0.93085091,2095.2,2094.8,0.001]
[1770515196158,0.93085091,2095.2,2094.5,0.001]
[1770515196657,0.97633516,2095.0,2094.5,0.001]
[1770515197076,0.97633516,2095.0,2094.2,0.001]
[1770515197683,0.97633516,2094.8,2094.2,0.001]
[1770515199073,0.97633516,2094.8,2094.0,0.001]
[1770515199470,1.19326046,2095.1,2094.0,0.93123366]
[1770515199767,0.97633516,2095.1,2094.0,0.93123366]
[1770515199966,0.97633516,2095.1,2094.0,2.12509607]
[1770515200173,5.7493708,2095.2,2094.1,0.93023366]
[1770515200571,0.97633516,2095.1,2094.1,0.93023366]
[1770515200768,0.97633516,2094.9,2094.0,0.001]
[1770515200975,0.97633516,2094.7,2094.0,0.001]
[1770515201778,2.16988046,2094.6,2094.0,0.001]
[1770515201993,1.01462,2094.5,2094.0,0.001]
[1770515202167,1.01462,2094.5,2093.7,0.001]
[1770515202500,0.97633516,2094.5,2093.7,0.001]
[1770515203178,1.01462,2094.5,2093.7,0.001]
[1770515203801,1.19365928,2094.4,2093.7,0.001]
[1770515203965,2.16999444,2094.4,2093.7,0.001]
[1770515205882,2.16999444,2094.4,2093.9,0.001]
[1770515206984,1.19365928,2094.4,2093.9,0.001]
[1770515207297,1.19365928,2094.4,2094.0,1.91731547]
[1770515207795,4.77413966,2094.7,2094.0,1.91731547]
[1770515208367,5.75047482,2094.7,2094.0,1.91731547]
[1770515212916,5.75047482,2094.7,2094.1,1.91731547]
[1770515215908,1.29582061,2094.9,2094.2,2.84754913]
[1770515216107,1.29582061,2094.9,2094.2,0.93023366]
[1770515216490,1.19342061,2094.9,2094.2,0.93023366]
[1770515217817,0.002,2095.0,2094.2,0.93023366]
[1770515217987,0.97833516,2095.0,2094.2,0.93123366]
[1770515218316,0.002,2094.5,2094.2,0.001]
[1770515221389,1.01462,2094.4,2093.9,0.001]
[1770515222327,1.19371627,2094.3,2093.9,0.001]
[1770515222511,2.17005143,2094.3,2093.9,0.001]
[1770515222814,0.97633516,2094.0,2093.7,0.001]
[1770515223020,1.19371627,2094.3,2093.7,0.001]
[1770515224415,1.19371627,2094.3,2093.7,0.93123366]
[1770515224616,2.17005143,2094.3,2093.7,0.001]
[1770515224920,1.19371627,2094.3,2093.7,0.001]
[1770515225900,2.10624258,2094.3,2093.7,0.001]
[1770515226708,0.95081115,2094.2,2093.7,0.001]
[1770515226913,0.95081115,2094.2,2093.6,0.001]
[1770515227321,0.91252631,2094.0,2093.6,0.001]
[1770515227523,0.95081115,2093.9,2093.4,0.001]
[1770515228506,0.91252631,2093.7,2093.1,0.001]
[1770515229209,0.95081115,2093.6,2093.1,0.001]
[1770515231202,1.19417243,2093.5,2093.1,0.001]
[1770515232921,2.13714239,2093.5,2093.1,0.001]
[1770515233129,2.13714239,2093.5,2093.0,0.001]
[1770515233421,2.13714239,2093.5,2092.5,0.001]
[1770515233422,0.94296996,2093.2,2092.5,0.001]
[1770515234415,0.94296996,2092.9,2092.5,0.001]
[1770515235124,0.94296996,2092.9,2092.4,0.001]
[1770515235331,0.94296996,2092.7,2092.3,0.001]
[1770515235517,0.9812548,2092.7,2092.0,0.001]
[1770515236210,1.19457186,2092.8,2092.0,0.94986978]
[1770515237211,4.77828746,2092.9,2092.0,0.001]
[1770515237212,1.19468603,2092.6,2092.0,0.001]
[1770515237425,2.13765599,2092.6,2092.0,0.001]
[1770515238051,1.19468603,2092.6,2092.0,0.001]
[1770515240908,1.19460138,2092.8,2092.1,0.94886978]
[1770515241109,1.19460138,2092.8,2092.1,1.1823827]
[1770515242627,1.19460138,2092.8,2092.1,0.23351292]
[1770515243030,1.19460138,2092.8,2092.1,1.1823827]
[1770515243717,1.29685771,2093.0,2092.1,1.1823827]
[1770515244827,1.29685771,2093.0,2092.4,0.001]
[1770515245262,4.77632407,2093.7,2092.5,0.94886978]
[1770515245423,0.94296996,2093.7,2092.5,0.94886978]
[1770515245736,1.19417243,2093.5,2092.7,0.94886978]
[1770515246038,1.19414384,2093.6,2092.7,0.94886978]
[1770515246206,5.71912222,2093.8,2092.7,0.94886978]
[1770515246207,1.19405029,2093.8,2092.7,0.94886978]
[1770515246717,1.33466632,2093.9,2092.7,0.94886978]
[1770515247636,1.1939264,2094.0,2092.7,0.94886978]
[1770515247825,1.1939264,2094.0,2092.9,0.94886978]
[1770515249834,1.19586795,2094.1,2093.1,0.94886978]
[1770515251028,1.23415279,2094.1,2093.1,0.94886978]
[1770515251717,1.19586795,2094.1,2093.1,0.94886978]
[1770515251918,1.19586795,2094.1,2093.3,0.94886978]
[1770515252519,1.19586795,2094.1,2093.2,1.19434358]
[1770515252520,2.17712275,2094.1,2093.2,1.19434358]
[1770515252753,1.19586795,2094.1,2093.3,0.94886978]
[1770515254129,0.002,2094.1,2093.5,0.94886978]
[1770515256242,0.002,2094.1,2093.6,1.19411539]
[1770515256450,0.002,2094.1,2093.7,0.97833094]
[1770515257229,0.002,2093.9,2093.7,0.97833094]
[1770515258849,0.002,2093.9,2093.0,0.97833094]
[1770515259048,0.002,2093.9,2093.2,0.97833094]
[1770515259551,0.94915808,2093.9,2093.3,0.23351292]
[1770515262351,0.002,2093.9,2093.3,1.42779427]
[1770515262550,1.19594482,2093.9,2093.3,0.23351292]
[1770515263656,1.19594482,2093.9,2093.2,0.97833094]
[1770515263657,1.19594482,2093.9,2093.4,0.23351292]
[1770515264533,0.002,2093.9,2093.4,0.23351292]
[1770515264733,0.91087324,2093.9,2093.4,0.23351292]
[1770515265136,0.91087324,2093.9,2092.9,1.19450756]
[1770515265452,0.94715808,2093.8,2092.9,1.19450756]
[1770515266971,0.002,2093.9,2093.0,0.97833094]
[1770515267138,0.002,2093.9,2093.2,0.97833094]
[1770515269047,0.002,2093.9,2093.4,0.97833094]
[1770515271558,0.002,2093.9,2093.5,1.19417243]
[1770515272157,0.002,2093.9,2093.4,2.17255609]
[1770515272342,0.002,2093.9,2093.5,3.83]
[1770515275466,0.002,2093.9,2093.5,5.02417185]
[1770515275668,0.002,2093.9,2093.5,3.83]
[1770515276757,0.002,2093.9,2093.4,3.83]
[1770515276758,0.90887324,2093.8,2093.4,3.83]
[1770515276940,0.94715808,2093.8,2092.9,1.19450449]
[1770515277445,2.1029316,2093.7,2092.9,1.19450449]
[1770515277867,2.1029316,2093.7,2092.8,2.17287285]
[1770515278364,0.90887324,2093.6,2092.8,2.17287285]
[1770515280662,1.19417243,2093.5,2092.8,2.17287285]
[1770515281167,1.19417243,2093.5,2093.0,0.001]
[1770515281473,0.90887324,2093.4,2093.0,0.001]
[1770515282970,2.10311706,2093.4,2093.0,0.001]
[1770515284247,0.90887324,2093.4,2093.0,0.001]
[1770515284568,2.1031195,2093.4,2093.0,0.001]
[1770515285466,1.19421516,2093.5,2093.0,0.001]
[1770515285668,0.002,2093.7,2093.0,0.96313195]
[1770515285845,0.002,2093.7,2093.2,0.96213195]
[1770515286564,0.002,2093.7,2093.4,0.96213195]
[1770515286776,0.002,2093.9,2093.4,0.96213195]
[1770515287466,0.002,2093.9,2093.5,1.19417243]
[1770515290074,0.002,2093.9,2093.4,2.15632175]
[1770515292950,0.002,2093.9,2093.5,3.83]
[1770515294080,0.98303258,2093.9,2093.5,3.83]
[1770515294382,0.98303258,2093.9,2093.6,0.001]
[1770515294679,0.002,2093.7,2093.6,0.001]
[1770515298662,0.002,2093.7,2093.6,3.831]
[1770515299880,0.98303258,2093.7,2093.4,3.831]
[1770515300883,1.19611448,2093.7,2093.4,3.831]
[1770515301180,0.98103258,2093.6,2093.4,3.831]
[1770515301687,0.98103258,2093.6,2093.0,0.001]
[1770515301870,0.98103258,2093.6,2093.0,1.19545048]
[1770515304786,0.98103258,2093.5,2093.0,0.001]
[1770515306898,0.98103258,2093.5,2093.2,0.001]
[1770515307299,0.002,2093.4,2093.2,0.001]
[1770515312115,1.19609502,2093.7,2093.3,0.60264056]
[1770515312116,0.002,2093.7,2093.3,0.60264056]
[1770515313623,0.98103258,2092.9,2092.5,0.001]
[1770515313908,0.03828484,2093.0,2092.4,0.001]
[1770515313909,2.21398909,2092.7,2092.4,0.001]
[1770515314113,0.98103258,2092.6,2092.4,0.001]
[1770515314589,0.98103258,2092.6,2092.1,0.001]
[1770515316091,0.97150697,2092.4,2092.1,0.001]
[1770515317149,0.97150697,2092.4,2091.6,2.1678342]
[1770515317150,0.97150697,2092.4,2091.6,0.97258296]
[1770515317330,0.97150697,2092.4,2091.6,0.001]
[1770515317999,1.00979181,2092.4,2091.6,0.001]
[1770515318537,0.97150697,2092.2,2091.6,0.001]
[1770515320225,0.97150697,2092.2,2092.0,0.001]
[1770515320603,0.97150697,2092.0,2091.6,0.001]
[1770515325128,1.1950858,2091.9,2091.6,0.001]
[1770515326633,0.1024,2092.3,2091.6,0.92715665]
[1770515326812,1.07390697,2092.3,2091.6,0.92715665]
[1770515327230,1.19491444,2092.2,2091.6,0.92715665]
[1770515329623,2.16640366,2092.3,2091.6,0.92715665]
[1770515329832,2.16640366,2092.3,2091.7,0.92715665]
[1770515330018,0.97150697,2092.3,2091.7,0.92715665]
[1770515330208,2.16636489,2092.3,2091.7,0.90219794]
[1770515332129,2.16636489,2092.3,2091.9,0.001]
[1770515332334,0.97350697,2092.2,2091.9,0.001]
[1770515333236,0.002,2092.4,2092.0,0.92615665]
[1770515333736,0.002,2092.4,2092.0,2.1211735]
[1770515334114,0.002,2092.4,2092.1,0.92615665]
[1770515335516,0.002,2092.4,2092.0,1.19501685]
[1770515335843,2.16599321,2093.0,2092.2,0.92615665]
[1770515336547,0.39984531,2093.3,2092.2,0.92615665]
[1770515336548,2.16588445,2093.2,2092.2,0.92615665]
[1770515336930,0.97150697,2093.1,2092.2,0.92615665]
[1770515338449,2.16596468,2093.0,2092.3,0.92615665]
[1770515340229,2.16596468,2093.0,2092.3,2.09854753]
[1770515341729,0.97150697,2093.0,2092.3,1.19485372]
[1770515342033,2.16597568,2093.0,2092.4,0.92615665]
[1770515342220,2.16597568,2093.0,2092.3,1.19485372]
[1770515343760,2.16585055,2093.2,2092.4,0.92615665]
[1770515343931,0.97150697,2093.1,2092.3,1.19485372]
[1770515344250,0.20216555,2092.4,2092.2,3.83]
[1770515344455,0.20216555,2092.4,2092.1,0.92615665]
[1770515344754,0.20216555,2092.4,2092.1,1.1949704]
[1770515344951,0.20216555,2092.4,2092.0,5.02498971]
[1770515345268,0.20216555,2092.4,2092.1,1.19497084]
[1770515345452,0.20216555,2092.4,2092.1,1.19136184]
[1770515346060,0.20216555,2092.4,2092.0,3.83]
[1770515346573,2.38298969,2092.4,2092.0,3.83]
[1770515346733,0.98600809,2092.3,2092.0,3.83]
[1770515347251,0.98600809,2092.3,2091.9,0.001]
[1770515348239,0.98600809,2092.2,2091.6,0.001]
[1770515348441,0.98600809,2092.2,2091.7,0.001]
[1770515348842,0.98600809,2092.2,2091.6,0.001]
[1770515349134,0.98600809,2092.2,2091.7,0.001]
[1770515350134,2.18096693,2092.2,2091.7,0.001]
[1770515353350,0.93472931,2092.1,2091.7,0.001]
[1770515353747,0.93472931,2092.1,2091.6,0.001]
[1770515354274,0.93472931,2092.1,2091.2,3.831]
[1770515354566,0.93472931,2092.1,2091.3,0.001]
[1770515356266,0.93472931,2091.9,2091.3,0.001]
[1770515356766,0.93472931,2091.9,2091.7,0.001]
[1770515356977,0.93472931,2091.9,2091.3,0.001]
[1770515357263,1.19502868,2092.0,2091.5,0.001]
[1770515357264,0.93472931,2091.7,2091.5,0.001]
[1770515357451,0.93472931,2091.7,2091.2,3.831]
[1770515357452,0.93472931,2091.7,2091.2,0.001]
[1770515357775,0.93472931,2091.7,2091.3,0.001]
[1770515358660,2.12996114,2091.7,2091.3,0.001]
[1770515359537,4.78031891,2092.0,2091.3,0.001]
[1770515359538,2.12975799,2092.0,2091.3,0.001]
[1770515359866,0.002,2092.1,2091.5,0.9098107]
[1770515360367,0.002,2092.1,2091.6,0.001]
[1770515361745,0.93672931,2092.1,2091.6,0.001]
[1770515362966,1.19502868,2092.0,2091.6,0.001]
[1770515363163,2.12975799,2092.0,2091.6,0.001]
[1770515365579,1.19502868,2092.0,2091.6,0.001]
[1770515367376,0.002,2092.1,2091.6,0.9108107]
[1770515367573,0.002,2092.1,2091.7,0.9098107]
[1770515367969,0.002,2092.1,2091.8,0.001]
[1770515369977,0.002,2091.9,2091.8,0.001]
[1770515370182,0.001,2091.9,2091.7,0.9108107]
[1770515372590,0.002,2092.1,2091.7,0.9108107]
[1770515374270,0.002,2092.1,2091.7,0.001]
[1770515375560,0.93672931,2092.1,2091.7,0.001]
[1770515375773,0.002,2092.1,2091.7,0.001]
[1770515375984,0.002,2092.1,2091.7,0.90449148]
[1770515376577,0.002,2092.3,2091.8,0.90349148]
[1770515376884,0.002,2092.3,2091.8,5.92858944]
[1770515378207,0.002,2092.3,2091.9,0.90349148]
[1770515380884,0.002,2092.3,2091.9,4.73349148]
[1770515381466,0.002,2092.3,2092.0,0.001]
[1770515381674,0.96810592,2092.6,2092.1,4.1186333]
[1770515382089,0.96810592,2092.6,2092.0,0.001]
[1770515384108,1.19474313,2092.5,2092.0,0.001]
[1770515384284,2.16283569,2092.6,2092.0,0.001]
[1770515385202,2.16471631,2092.8,2092.1,5.02212478]
[1770515385391,2.16471631,2092.8,2092.2,0.90349148]
[1770515386393,2.16471631,2092.8,2092.1,7.9486333]
[1770515386706,2.16471631,2092.8,2092.1,8.85212478]
[1770515387208,2.16471631,2092.8,2092.1,3.83]
[1770515387209,0.96810592,2092.7,2092.1,3.83]
[1770515387507,0.96810592,2092.4,2092.0,0.001]
[1770515388800,0.96810592,2092.2,2092.0,0.001]
[1770515389197,0.96810592,2092.2,2091.8,0.001]
[1770515391520,1.19497155,2092.1,2091.8,0.001]
[1770515391690,2.16307747,2092.1,2091.8,0.001]
[1770515392792,1.19661002,2092.8,2091.8,0.90449148]
[1770515393106,2.16471594,2092.8,2091.8,0.90449148]
[1770515393311,0.96810592,2092.7,2091.8,0.90449148]
[1770515393918,2.1627469,2092.7,2091.9,2.09857728]
[1770515394821,2.1627469,2092.7,2092.0,0.001]
[1770515395023,0.002,2092.1,2092.0,0.001]
[1770515395322,0.002,2092.3,2092.0,0.90449148]
[1770515396297,0.002,2092.3,2092.0,2.09948693]
[1770515396712,2.1627469,2092.7,2092.0,2.09948693]
[1770515397899,0.002,2092.8,2092.1,0.90349148]
[1770515398397,0.002,2092.8,2092.2,1.19491444]
[1770515398624,0.002,2092.8,2092.3,0.90349148]
[1770515400900,0.002,2092.8,2092.4,1.19480022]
[1770515401228,0.002,2092.8,2092.3,2.09830498]
[1770515401799,0.96810592,2092.7,2092.0,0.90449148]
[1770515401997,0.002,2092.8,2092.3,2.09833973]
[1770515402206,0.002,2093.2,2092.5,0.90349148]
[1770515402946,2.16252637,2093.1,2092.3,2.09833973]
[1770515403101,0.96810592,2093.0,2092.3,2.09833973]
[1770515403417,1.19637778,2093.2,2092.4,0.90349148]
[1770515403600,2.1644837,2093.2,2092.4,0.90349148]
[1770515404407,1.19637778,2093.2,2092.4,0.90349148]
[1770515404724,0.96810592,2093.1,2092.4,0.90349148]
[1770515405232,0.96810592,2093.0,2092.3,1.19485144]
[1770515407429,0.97301836,2092.9,2092.3,1.19485144]
[1770515408026,0.002,2092.9,2092.4,0.97766999]
[1770515408399,0.97301836,2092.9,2092.3,1.19485144]
[1770515409932,0.002,2092.9,2092.3,2.17252143]
[1770515411022,0.97301836,2092.9,2092.3,1.19485144]
[1770515412413,0.97301836,2092.9,2092.2,4.77963197]
[1770515412738,0.002,2092.9,2092.3,0.97766999]
[1770515414739,0.002,2092.9,2092.3,2.17250015]
[1770515415450,0.94390136,2092.9,2092.2,1.19489437]
[1770515415955,0.94390136,2092.9,2092.2,1.1949112]
[1770515417844,0.94190136,2092.8,2092.2,1.1949112]
[1770515419952,0.002,2092.9,2092.5,0.9097726]
[1770515421760,0.002,2093.1,2092.5,0.9097726]
[1770515421963,0.002,2093.1,2092.7,0.9097726]
[1770515422859,0.36156047,2093.3,2092.6,1.19468603]
[1770515423064,0.36156047,2093.3,2092.7,0.9097726]
[1770515424037,0.002,2093.6,2092.9,0.9097726]
[1770515425239,0.002,2093.7,2093.0,0.9097726]
[1770515426369,0.002,2093.7,2093.2,0.9097726]
[1770515426769,0.002,2093.9,2093.2,0.9097726]
[1770515427269,0.002,2094.1,2093.6,0.9097726]
[1770515427674,0.002,2094.1,2093.2,0.9097726]
[1770515428341,0.002,2094.1,2093.4,0.9097726]
[1770515428545,0.002,2094.3,2093.4,0.9097726]
[1770515429157,0.002,2094.5,2093.5,0.9097726]
[1770515430379,0.002,2094.5,2093.7,0.9097726]
[1770515430578,0.37577217,2094.7,2093.9,0.9097726]
[1770515432466,0.37577217,2094.7,2094.0,1.19388729]
[1770515432662,0.37577217,2094.7,2094.1,0.9097726]
[1770515433277,0.002,2094.3,2094.1,0.9097726]
[1770515433456,0.37577217,2094.7,2094.1,0.9097726]
[1770515433856,0.002,2094.5,2094.1,0.9097726]
[1770515434050,0.37577217,2094.7,2094.1,0.9097726]
[1770515434378,0.37577217,2094.7,2094.0,1.19388729]
[1770515434379,0.94190136,2094.6,2094.0,1.19388729]
[1770515434557,0.94190136,2094.6,2093.9,4.77561473]
[1770515437357,0.37577217,2094.7,2094.0,0.90037086]
[1770515437759,0.002,2095.0,2094.0,0.90037086]
[1770515438478,0.91448111,2095.3,2094.3,0.90037086]
[1770515438978,0.91448111,2095.2,2094.4,2.09403014]
[1770515441264,0.91648111,2095.4,2094.5,0.90037086]
[1770515441461,0.91648111,2095.4,2094.4,1.19365928]
[1770515441462,0.002,2095.4,2094.7,0.90037086]
[1770515442569,0.91648111,2095.4,2094.6,4.94506112]
[1770515442757,2.10958174,2095.4,2094.6,4.94506112]
[1770515442955,2.10958174,2095.4,2094.5,0.90037086]
[1770515443355,2.10958174,2095.4,2094.6,1.1935453]
[1770515444167,0.91448111,2095.3,2094.6,1.1935453]
[1770515444658,1.19510063,2095.4,2094.6,5.0235453]
[1770515444659,2.10957426,2095.4,2094.6,5.0235453]
[1770515444985,0.91648111,2095.4,2094.6,5.0235453]
[1770515445190,2.1095749,2095.4,2094.6,5.0235453]
[1770515445360,0.91448111,2095.1,2094.3,3.83]
[1770515445559,0.91448111,2094.9,2094.3,3.83]
[1770515447360,0.91448111,2094.8,2094.3,3.83]
[1770515448083,0.91448111,2094.8,2094.1,0.001]
[1770515448577,0.91448111,2094.5,2093.9,0.001]
[1770515448777,0.91448111,2094.5,2093.2,1.19430878]
[1770515449182,0.91448111,2094.2,2093.0,1.19541268]
[1770515449364,0.91448111,2094.0,2093.0,0.001]
[1770515450460,0.95276595,2094.0,2093.0,0.001]
[1770515451185,0.91448111,2094.4,2093.3,0.90037086]
[1770515451365,2.10816227,2094.4,2093.4,1.19422948]
[1770515451566,2.10815442,2094.4,2093.4,2.09460034]
[1770515452166,0.91448111,2094.3,2093.4,2.09460034]
[1770515454466,2.1082066,2094.3,2093.4,2.09460034]
[1770515454672,0.91448111,2094.3,2093.4,2.09460034]
[1770515456598,0.91448111,2094.9,2093.6,0.90037086]
[1770515458104,0.91448111,2094.8,2093.8,0.90037086]
[1770515458602,0.91448111,2094.8,2093.7,2.09442922]
[1770515459199,0.002,2094.2,2093.7,2.09442922]
[1770515461400,0.002,2094.2,2093.7,1.19405836]
[1770515462792,0.002,2094.2,2093.8,3.83]
[1770515462983,0.002,2094.2,2093.9,1.19394431]
[1770515463190,0.002,2094.4,2093.9,1.19394431]
[1770515463400,0.002,2094.4,2093.9,2.09431517]
[1770515464094,0.91648111,2094.4,2093.8,5.02397062]
[1770515466684,0.91648111,2094.4,2093.9,0.97990628]
[1770515466685,0.002,2094.4,2093.9,0.97990628]
[1770515467497,0.002,2094.4,2094.0,1.19388729]
[1770515468605,2.107128,2095.0,2094.1,0.97990628]
[1770515468908,0.91377756,2094.9,2094.1,4.80990628]
[1770515469492,0.91377756,2094.9,2094.2,5.02377327]
[1770515470100,0.91377756,2094.8,2094.2,5.02377327]
[1770515470704,0.91377756,2094.8,2094.2,1.19377327]
[1770515471790,0.91377756,2094.8,2094.1,4.77609311]
[1770515471996,0.002,2094.4,2094.1,1.19483028]
[1770515472394,0.002,2095.1,2094.3,1.01819112]
[1770515472592,0.002,2095.3,2094.6,0.97990628]
[1770515474214,0.002,2095.3,2094.7,1.19348832]
[1770515474612,0.002,2095.3,2094.6,2.13288082]
[1770515474818,0.002,2095.3,2094.7,0.93934919]
[1770515475220,0.34988795,2095.5,2094.7,0.93934919]
[1770515475221,1e-08,2095.5,2094.7,0.93934919]
[1770515476321,1e-08,2095.5,2094.8,2.13278054]
[1770515476820,0.002,2096.2,2095.4,0.93934919]
[1770515478294,0.002,2096.2,2095.6,0.93934919]
[1770515480296,0.002,2096.2,2095.7,1.19291883]
[1770515480625,0.94185727,2096.7,2095.8,0.93934919]
[1770515481124,0.94185727,2096.9,2095.8,0.93934919]
[1770515482315,1.29356035,2097.1,2096.0,0.93934919]
[1770515482502,2.4856847,2097.1,2096.0,0.93934919]
[1770515482898,0.94185727,2097.0,2096.0,0.93934919]
[1770515483105,0.94185727,2097.0,2095.9,1.192805]
[1770515483326,0.35170308,2097.1,2096.0,0.93934919]
[1770515483627,0.002,2096.7,2096.0,0.93934919]
[1770515483924,0.35170308,2097.1,2095.9,1.192805]
[1770515483925,0.002,2096.9,2096.2,0.93934919]
[1770515484126,0.3430646,2098.4,2096.6,0.93934919]
[1770515484330,2.1332581,2098.4,2097.3,0.93934919]
[1770515484502,0.69185727,2098.3,2097.3,0.93934919]
[1770515484698,0.94185727,2098.5,2097.3,0.93934919]
[1770515486117,0.94185727,2098.0,2096.5,0.93934919]
[1770515486316,0.94185727,2097.8,2096.5,0.93934919]
[1770515486523,0.94185727,2097.8,2096.5,1.19245644]
[1770515487112,0.94185727,2097.8,2096.5,2.13180563]
[1770515487838,0.94185727,2097.6,2096.4,1.19251481]
[1770515488014,0.94185727,2097.6,2096.5,1.19244928]
[1770515488325,10.11091849,2098.1,2096.3,4.77030354]
[1770515488326,1.19149747,2098.2,2096.6,0.93934919]
[1770515488514,2.13335474,2098.2,2096.6,0.93934919]
[1770515489026,1.19149747,2098.2,2096.7,0.93934919]
[1770515489346,0.94185727,2098.2,2096.7,0.97763403]
[1770515489509,1.19147663,2098.3,2096.7,0.97763403]
[1770515489710,0.94185727,2098.2,2096.7,0.97763403]
[1770515490036,1.19142398,2098.4,2096.7,0.97763403]
[1770515490331,5.70724994,2098.5,2096.7,0.97763403]
[1770515490332,2.13322457,2098.5,2097.3,0.93934919]
[1770515490737,0.94185727,2098.5,2097.3,0.93934919]
[1770515490932,2.13318451,2098.5,2097.3,0.93934919]
[1770515491935,4.79849843,2099.7,2098.3,5.34462787]
[1770515492233,0.24909781,2099.7,2098.8,0.93934919]
[1770515492433,0.35985901,2100.0,2098.0,0.93934919]
[1770515492434,0.94185727,2099.8,2098.0,0.93934919]
[1770515492634,0.94185727,2099.6,2098.0,2.13090472]
[1770515492815,0.94185727,2099.6,2098.0,0.93934919]
[1770515493016,0.94185727,2099.6,2098.1,1.19152626]
[1770515493218,5.70403051,2099.9,2098.4,0.93934919]
[1770515493417,0.98014211,2099.8,2098.6,1.19126279]
[1770515493755,0.94185727,2099.8,2098.6,1.1912663]
[1770515493913,0.94185727,2099.8,2098.3,0.93934919]
[1770515494112,0.94185727,2099.8,2098.6,1.19126917]
[1770515494317,0.94185727,2099.6,2098.4,1.19138391]
[1770515495149,0.94185727,2099.6,2098.3,1.19143414]
[1770515495523,0.94185727,2099.4,2098.3,1.19139665]
[1770515496029,0.91136713,2099.2,2098.1,4.76615013]
[1770515496227,0.91136713,2099.2,2098.3,1.19142295]
[1770515496429,2.10035374,2099.1,2098.2,1.19146598]
[1770515496738,1.19293754,2099.2,2098.2,1.19146598]
[1770515496940,0.002,2099.2,2098.2,1.19146598]
[1770515497543,2.10231739,2099.2,2098.2,1.19148138]
[1770515497739,0.90936713,2099.1,2098.2,1.19148138]
[1770515499133,2.10037797,2099.1,2097.8,5.72067299]
[1770515499548,2.10037797,2099.1,2097.8,0.95382211]
[1770515499749,0.90936713,2099.0,2097.7,1.19178147]
[1770515500039,0.90936713,2099.0,2097.6,1.19180835]
[1770515500230,0.94765197,2099.0,2097.6,1.19180835]
[1770515501359,0.90936713,2098.8,2097.3,4.76800265]
[1770515502175,0.90936713,2098.8,2097.4,0.95382211]
[1770515502337,0.002,2099.2,2098.1,0.99210695]
[1770515502533,1.19293751,2099.2,2098.1,0.95382211]
[1770515502739,0.90936713,2099.1,2097.8,0.99210695]
[1770515503035,0.002,2099.2,2097.8,0.99210695]
[1770515503536,0.002,2099.2,2098.0,0.95382211]
[1770515503732,0.91136713,2099.2,2098.0,0.95382211]
[1770515504149,0.91136713,2099.2,2097.9,1.19166785]
[1770515504353,0.90936713,2099.0,2097.7,1.19174875]